bitfinex/quotes_ETHUSD_20250731
["timestamp","ask_amount","ask_price","bid_price","bid_amount"]
[1753941559633,0.24220807,3863.9,3863.5,0.001]
[1753941559834,1e-08,3864.0,3863.5,0.001]
[1753941560166,0.24221394,3863.9,3863.5,0.001]
[1753941560469,1e-08,3864.0,3863.5,0.001]
[1753941560672,0.24221934,3863.9,3863.5,0.001]
[1753941560874,1e-08,3864.0,3863.5,0.001]
[1753941561045,0.24222468,3863.9,3863.5,0.001]
[1753941561232,1e-08,3864.0,3863.5,0.001]
[1753941561428,0.24222406,3863.9,3863.5,0.001]
[1753941561628,1e-08,3864.0,3863.5,0.001]
[1753941561824,0.24222495,3863.9,3863.5,0.001]
[1753941562029,1e-08,3864.0,3863.5,0.001]
[1753941562228,0.24222245,3863.9,3863.5,0.001]
[1753941562530,1e-08,3864.0,3863.5,0.001]
[1753941562730,0.24224874,3863.9,3863.5,0.001]
[1753941563081,1e-08,3864.0,3863.5,2.58931165]
[1753941563887,1e-08,3864.0,3863.5,0.001]
[1753941569181,1e-08,3864.0,3863.5,2.58931042]
[1753941570940,1e-08,3864.0,3863.5,0.001]
[1753941574679,0.94555681,3864.0,3863.5,0.001]
[1753941576787,1e-08,3864.0,3863.5,2.58927131]
[1753941577075,1e-08,3864.0,3863.9,2.58805869]
[1753941577279,1e-08,3864.0,3863.9,6.49805869]
[1753941589464,1e-08,3864.0,3863.9,3.91]
[1753941589664,1e-08,3864.0,3863.9,6.49805869]
[1753941589988,1e-08,3864.0,3863.9,3.91]
[1753941593518,1e-08,3864.0,3863.9,6.49805869]
[1753941593816,1e-08,3864.0,3863.9,7.40668316]
[1753941601891,2.58852764,3863.2,3863.1,0.001]
[1753941602088,10.21113755,3863.2,3863.1,0.001]
[1753941602296,10.21113755,3863.2,3863.1,3.912]
[1753941602737,10.21113755,3863.2,3863.1,0.001]
[1753941603032,0.51768543,3863.2,3863.1,3.912]
[1753941603186,3.0,3863.6,3863.1,3.912]
[1753941603388,0.24215125,3863.5,3863.1,3.912]
[1753941603604,3.0,3863.8,3863.1,3.912]
[1753941603812,0.24208841,3863.7,3863.1,3.912]
[1753941603991,3.0,3863.8,3863.1,3.912]
[1753941604192,0.24201113,3863.7,3863.1,3.912]
[1753941604395,3.9452415,3863.8,3863.1,3.912]
[1753941604589,0.24197179,3863.7,3863.1,3.912]
[1753941604795,3.9452415,3863.8,3863.1,3.912]
[1753941605118,0.24197176,3863.7,3863.1,3.912]
[1753941605415,0.29029861,3863.7,3863.1,3.912]
[1753941606339,1e-08,3864.0,3863.2,2.58846561]
[1753941606541,0.24191156,3863.9,3863.2,2.58846561]
[1753941606847,0.24191156,3863.8,3863.2,2.58846561]
[1753941607043,1e-08,3864.0,3863.2,2.58846561]
[1753941607204,0.24191085,3863.9,3863.2,2.58846561]
[1753941607405,0.24191085,3863.8,3863.2,2.58846561]
[1753941607610,1e-08,3864.0,3863.2,2.58846561]
[1753941607926,0.24188413,3863.9,3863.2,2.58846561]
[1753941608131,0.24188413,3863.8,3863.2,2.58846561]
[1753941608336,1e-08,3864.0,3863.2,2.58846561]
[1753941608551,0.2418515,3863.9,3863.2,2.58846561]
[1753941608753,0.2418515,3863.8,3863.1,6.50059387]
[1753941608935,1e-08,3864.0,3863.1,6.50059387]
[1753941609142,1e-08,3864.0,3863.2,2.58850148]
[1753941609143,0.24183681,3863.9,3863.2,2.58850148]
[1753941609314,1e-08,3864.0,3863.2,2.58850148]
[1753941609521,0.24181681,3863.9,3863.2,2.58850148]
[1753941609740,1e-08,3864.0,3863.3,2.58845986]
[1753941609940,0.24180975,3863.9,3863.4,3.914]
[1753941610145,1e-08,3864.0,3863.4,3.914]
[1753941610446,0.24179621,3863.9,3863.4,3.914]
[1753941610649,0.24179621,3863.9,3863.4,4.82320379]
[1753941610847,1e-08,3864.0,3863.5,2.58826454]
[1753941611165,1e-08,3864.0,3863.4,4.82320379]
[1753941611373,1e-08,3864.0,3863.4,7.41157456]
[1753941611520,1e-08,3864.0,3863.6,2.58820962]
[1753941611894,1e-08,3864.0,3863.7,3.913]
[1753941612411,1e-08,3864.0,3863.7,6.50117615]
[1753941612660,1e-08,3864.0,3863.8,2.58808797]
[1753941613449,1e-08,3864.0,3863.9,2.58805869]
[1753941613640,1e-08,3864.0,3863.8,3.49704234]
[1753941614153,1e-08,3864.0,3863.9,2.58805869]
[1753941619635,1e-08,3864.0,3863.9,6.50105869]
[1753941620076,1e-08,3864.0,3863.9,7.05105869]
[1753941620240,1e-08,3864.0,3863.9,8.10587662]
[1753941637191,1e-08,3864.0,3863.9,8.55867662]
[1753941639295,1e-08,3864.0,3863.9,8.10587662]
[1753941640098,1e-08,3864.0,3863.9,8.55867662]
[1753941640695,1e-08,3864.0,3863.9,8.10587662]
[1753941641207,1e-08,3864.0,3863.9,4.19287662]
[1753941641497,0.45020001,3864.0,3863.9,8.10187662]
[1753941650307,0.002,3864.1,3864.0,3.13799171]
[1753941650616,1e-08,3864.1,3864.0,9.46390524]
[1753941650910,1e-08,3864.1,3864.0,12.42780524]
[1753941656097,1e-08,3864.1,3864.0,16.67780524]
[1753941656610,1e-08,3864.1,3864.0,9.21980524]
[1753941656814,0.96000001,3864.1,3864.0,2.58799171]
[1753941657012,0.96000001,3864.1,3864.0,6.49699171]
[1753941657216,0.96000001,3864.1,3864.0,7.04699171]
[1753941658109,0.49930001,3864.1,3864.0,7.04699171]
[1753941658310,0.96000001,3864.1,3864.0,7.04699171]
[1753941659414,0.96000001,3864.1,3864.0,8.26931534]
[1753941659818,0.49930001,3864.1,3864.0,8.26931534]
[1753941659993,1e-08,3864.1,3864.0,13.10046172]
[1753941660195,1e-08,3864.1,3864.0,13.58516172]
[1753941660515,1e-08,3864.1,3864.0,14.04456172]
[1753941661624,1e-08,3864.2,3864.1,3.13792474]
[1753941661944,1e-08,3864.2,3864.1,5.15617339]
[1753941662087,1e-08,3864.2,3864.1,5.64087339]
[1753941662797,1e-08,3864.2,3864.1,6.10027339]
[1753941663214,1e-08,3864.4,3864.3,6.1377908]
[1753941663398,1e-08,3864.4,3864.3,14.87793718]
[1753941663587,1e-08,3864.4,3864.3,17.30178977]
[1753941663922,1e-08,3864.4,3864.3,18.24588977]
[1753941664237,1e-08,3864.8,3864.7,6.13752296]
[1753941664396,1e-08,3864.8,3864.7,14.87766934]
[1753941664726,1e-08,3864.8,3864.7,17.40394627]
[1753941667807,1e-08,3864.8,3864.7,21.65394627]
[1753941669731,1e-08,3865.2,3865.1,6.13725518]
[1753941669930,1e-08,3865.2,3865.1,19.12640156]
[1753941670123,1e-08,3865.2,3865.1,25.34340156]
[1753941670326,1e-08,3865.2,3865.1,28.39836617]
[1753941671733,1e-08,3865.2,3865.1,27.91366617]
[1753941672924,1e-08,3865.4,3865.3,6.13712131]
[1753941673261,1e-08,3865.4,3865.3,10.04512131]
[1753941673443,1e-08,3865.4,3865.3,12.61538592]
[1753941675962,1e-08,3865.8,3865.6,3.13692052]
[1753941676136,1e-08,3865.9,3865.8,7.96793307]
[1753941676326,1e-08,3865.9,3865.8,9.15542638]
[1753941676657,0.46390001,3865.9,3865.8,9.15542638]
[1753941677263,1e-08,3865.9,3865.8,9.15542638]
[1753941678228,0.46390001,3865.9,3865.8,9.15542638]
[1753941679039,0.94660001,3865.9,3865.8,9.15542638]
[1753941679634,0.94660001,3865.9,3865.8,13.40542638]
[1753941679859,0.46390001,3865.9,3865.8,13.40542638]
[1753941680427,0.94660001,3865.9,3865.8,13.40542638]
[1753941680862,0.46390001,3865.9,3865.8,13.40542638]
[1753941681264,1e-08,3865.9,3865.8,9.62152638]
[1753941681465,1e-08,3865.9,3865.8,12.15542638]
[1753941681666,1e-08,3865.9,3865.8,12.62152638]
[1753941685467,1e-08,3865.9,3865.8,16.87152638]
[1753941687036,1e-08,3865.9,3865.8,16.40542638]
[1753941687674,1e-08,3865.9,3865.8,11.57428]
[1753941688329,1e-08,3865.9,3865.8,9.83678669]
[1753941688530,1e-08,3865.9,3865.8,6.83678669]
[1753941688757,1e-08,3865.9,3865.8,6.49478669]
[1753941689157,1e-08,3865.9,3865.8,7.04478669]
[1753941689357,1e-08,3865.9,3865.8,6.49478669]
[1753941689663,1e-08,3865.9,3865.8,7.04478669]
[1753941689971,1e-08,3865.9,3865.8,6.49478669]
[1753941691950,1e-08,3865.9,3865.8,4.458]
[1753941693034,1e-08,3865.9,3865.8,7.04478669]
[1753941693536,1e-08,3865.9,3865.8,4.458]
[1753941693752,1e-08,3865.9,3865.8,7.04478669]
[1753941694445,1e-08,3865.9,3865.8,4.458]
[1753941694767,1e-08,3865.9,3865.1,8.80421005]
[1753941694768,1e-08,3865.9,3865.1,6.217]
[1753941694936,1e-08,3865.9,3865.2,4.458]
[1753941695642,1e-08,3865.9,3865.5,2.58693386]
[1753941695842,1e-08,3865.9,3865.6,7.04489606]
[1753941696044,1e-08,3865.9,3865.7,2.5868477]
[1753941696245,1e-08,3865.9,3865.8,3.908]
[1753941697170,1e-08,3865.9,3865.8,6.49478669]
[1753941697734,1e-08,3865.9,3865.8,3.908]
[1753941698976,1e-08,3865.9,3865.8,6.49478669]
[1753941707455,1e-08,3865.9,3865.8,2.58678669]
[1753941707655,1e-08,3865.9,3865.8,6.49378669]
[1753941708367,1e-08,3865.9,3865.8,3.907]
[1753941708687,1e-08,3865.9,3865.8,6.49378669]
[1753941709389,1e-08,3865.9,3865.8,3.907]
[1753941710195,1e-08,3865.9,3865.8,6.49378669]
[1753941710486,1e-08,3865.9,3865.8,3.907]
[1753941712982,1e-08,3865.9,3865.6,0.55]
[1753941713179,1e-08,3865.9,3865.3,2.58809157]
[1753941713180,4.83114639,3865.9,3865.3,0.001]
[1753941713389,0.48311464,3865.8,3865.4,3.907]
[1753941713568,0.48311464,3865.8,3865.3,0.001]
[1753941713891,0.48311464,3865.8,3865.4,3.907]
[1753941718262,1e-08,3865.9,3865.4,3.907]
[1753941719001,1e-08,3865.9,3865.6,0.55]
[1753941719199,0.24222552,3865.8,3865.7,3.907]
[1753941719698,0.24220089,3865.8,3865.7,3.907]
[1753941720897,0.24220089,3865.8,3865.7,7.0438536]
[1753941721267,0.24220089,3865.8,3865.7,8.00693597]
[1753941721503,1e-08,3865.9,3865.8,3.13678669]
[1753941724197,0.24229083,3865.9,3865.8,3.13678669]
[1753941724406,0.24232665,3865.9,3865.8,3.13678669]
[1753941724864,0.24233426,3865.9,3865.8,3.13678669]
[1753941725065,0.24233426,3865.9,3865.8,4.19625896]
[1753941725901,1e-08,3865.9,3865.8,4.19625896]
[1753941740916,1e-08,3865.9,3865.8,7.04378669]
[1753941742230,0.94190001,3865.9,3865.8,7.04378669]
[1753941742523,1e-08,3865.9,3865.8,7.50718669]
[1753941744300,1e-08,3865.9,3865.8,7.50818669]
[1753941745437,1e-08,3865.9,3865.8,8.56474072]
[1753941749015,0.45010001,3865.9,3865.8,8.10134072]
[1753941750347,0.45010001,3865.9,3865.8,7.55134072]
[1753941750944,0.45010001,3865.9,3865.8,8.10134072]
[1753941752345,0.94190001,3865.9,3865.8,8.10134072]
[1753941752530,0.45010001,3865.9,3865.8,8.10134072]
[1753941753041,1e-08,3865.9,3865.8,8.10134072]
[1753941753910,1e-08,3865.9,3865.8,7.55134072]
[1753941755644,1e-08,3865.9,3865.8,8.10134072]
[1753941764221,0.93510001,3865.9,3865.8,7.04478669]
[1753941765551,0.93510001,3865.9,3865.8,3.13778669]
[1753941765756,0.93510001,3865.9,3865.8,7.04378669]
[1753941768962,1e-08,3865.9,3865.8,7.04378669]
[1753941769141,0.93510001,3865.9,3865.8,7.04378669]
[1753941778771,0.43540001,3865.9,3865.8,7.04378669]
[1753941780052,0.93510001,3865.9,3865.8,7.04378669]
[1753941782346,0.43540001,3865.9,3865.8,7.04378669]
[1753941785876,0.93360001,3865.9,3865.8,0.001]
[1753941786079,1.41283942,3865.9,3865.8,3.907]
[1753941788997,0.93360001,3865.9,3865.8,3.907]
[1753941789157,0.93360001,3865.9,3865.8,0.001]
[1753941789363,0.93360001,3865.9,3865.8,3.907]
[1753941789592,0.93360001,3865.9,3865.8,0.001]
[1753941789794,3.52031979,3865.9,3865.8,0.001]
[1753941789999,6.76291109,3865.9,3865.8,3.907]
[1753941790297,6.76291109,3865.9,3865.8,0.001]
[1753941790595,6.76284893,3865.9,3865.8,3.907]
[1753941790779,6.76284893,3865.9,3865.8,0.001]
[1753941791386,6.76275891,3865.9,3865.8,0.001]
[1753941792559,4.17603913,3865.9,3865.8,0.001]
[1753941792903,4.17589633,3865.9,3865.8,0.001]
[1753941793376,4.17589578,3865.9,3865.8,0.001]
[1753941794071,3.93360001,3865.9,3865.8,0.001]
[1753941794278,4.06340135,3865.9,3865.8,0.001]
[1753941795197,6.65012113,3865.9,3865.8,0.001]
[1753941795672,4.06340135,3865.9,3865.8,0.001]
[1753941796399,6.65012113,3865.9,3865.8,0.001]
[1753941796702,6.89249405,3865.9,3865.8,0.001]
[1753941797882,4.30577427,3865.9,3865.8,0.001]
[1753941799106,6.89249405,3865.9,3865.8,0.001]
[1753941801309,6.89249405,3865.9,3865.8,1e-08]
[1753941801603,6.89249405,3865.9,3864.9,0.001]
[1753941801604,5.58732212,3865.0,3864.9,0.001]
[1753941801778,11.47199748,3865.0,3864.9,0.001]
[1753941802174,12.40559748,3865.0,3864.9,0.001]
[1753941807181,16.31259748,3865.0,3864.9,0.001]
[1753941809220,16.44143383,3865.0,3864.9,0.001]
[1753941812599,16.44000832,3865.0,3864.9,0.001]
[1753941814920,15.95930832,3865.0,3864.9,0.001]
[1753941815129,16.43090832,3865.0,3864.9,0.001]
[1753941815491,16.43098721,3865.0,3864.9,0.001]
[1753941815829,16.43098728,3865.0,3864.9,0.001]
[1753941820326,16.62644423,3865.0,3864.9,0.001]
[1753941821627,16.62694669,3865.0,3864.9,0.001]
[1753941827814,16.15534669,3865.0,3864.9,0.001]
[1753941828934,12.71994669,3865.0,3864.9,0.001]
[1753941829111,16.62794669,3865.0,3864.9,0.001]
[1753941830535,16.38641786,3865.0,3864.9,0.001]
[1753941830710,16.8707355,3865.0,3864.9,0.001]
[1753941832543,16.87101284,3865.0,3864.9,0.001]
[1753941834036,10.41243647,3864.6,3864.5,0.001]
[1753941834239,14.98067952,3864.6,3864.5,0.001]
[1753941834739,15.90017952,3864.6,3864.5,0.001]
[1753941836760,15.42857952,3864.6,3864.5,0.001]
[1753941838059,11.52057952,3864.6,3864.5,0.001]
[1753941838267,6.24783296,3864.6,3864.5,0.4726]
[1753941838958,5.82974873,3864.6,3864.5,0.4726]
[1753941840518,0.24215882,3864.6,3864.5,0.4726]
[1753941840766,0.21515882,3864.6,3864.5,0.9224]
[1753941840996,0.21515882,3864.6,3864.5,4.06005687]
[1753941841121,0.21515882,3864.6,3864.5,1.87840569]
[1753941841518,0.21515882,3864.6,3864.5,4.46606256]
[1753941841927,0.21515882,3864.6,3864.5,1.87840569]
[1753941842139,3.002,3865.3,3864.5,1.87840569]
[1753941842336,0.24237998,3865.2,3864.6,0.9214]
[1753941842553,0.002,3865.3,3864.6,0.44661196]
[1753941842754,0.24438098,3865.3,3864.7,0.9214]
[1753941842928,0.24438098,3865.3,3864.8,0.9365]
[1753941843127,0.24438098,3865.3,3864.9,0.9365]
[1753941843370,0.24438098,3865.3,3864.6,0.44661196]
[1753941843671,2.58732248,3865.0,3864.6,0.4877]
[1753941844562,2.5872721,3865.1,3864.6,0.4877]
[1753941844735,6.04390761,3865.2,3864.6,0.9365]
[1753941844939,3.0,3865.2,3864.7,0.4877]
[1753941845173,3.0,3865.2,3864.8,0.4488]
[1753941845474,3.0,3865.2,3864.9,0.4877]
[1753941846536,3.002,3865.3,3865.0,0.4877]
[1753941846742,3.002,3865.3,3865.0,0.9365]
[1753941846944,3.002,3865.3,3865.1,0.4877]
[1753941847742,3.002,3865.3,3865.2,0.4877]
[1753941847943,3.24431458,3865.3,3865.2,0.4877]
[1753941848650,2.83143589,3865.3,3865.2,0.4877]
[1753941849159,2.83143589,3865.3,3865.0,0.4877]
[1753941849361,3.0,3865.1,3864.8,0.4488]
[1753941849561,2.58913677,3865.3,3864.8,0.4488]
[1753941850062,5.58913677,3865.3,3864.9,0.4877]
[1753941850277,3.0,3865.2,3864.9,0.4877]
[1753941850677,3.002,3865.3,3864.9,0.9365]
[1753941850886,3.002,3865.3,3864.9,0.4488]
[1753941851058,3.002,3865.3,3865.0,0.4877]
[1753941851768,0.002,3865.3,3865.1,0.4877]
[1753941852072,0.002,3865.3,3865.2,0.4488]
[1753941852485,0.002,3865.3,3865.1,0.4488]
[1753941852769,0.002,3865.3,3865.2,0.4877]
[1753941852973,0.24408852,3865.3,3865.2,0.4877]
[1753941856874,0.002,3865.3,3865.2,0.4877]
[1753941859310,0.24387071,3865.3,3865.2,0.4877]
[1753941859508,2.58912131,3865.3,3865.2,0.4877]
[1753941859707,0.002,3865.3,3865.2,0.4877]
[1753941860307,0.002,3865.3,3864.5,0.001]
[1753941860308,4.8661423,3865.3,3864.5,0.001]
[1753941860474,7.41211227,3865.1,3864.6,0.4877]
[1753941860671,5.58913741,3865.3,3864.6,0.4877]
[1753941860896,3.0,3865.2,3864.6,0.9365]
[1753941861087,3.0,3865.2,3864.7,0.4877]
[1753941861487,0.2418467,3865.1,3864.7,0.4877]
[1753941861709,0.2418467,3865.1,3864.7,0.9365]
[1753941861890,3.0,3865.2,3864.7,0.4488]
[1753941862077,0.24184614,3865.1,3864.8,0.4877]
[1753941862280,0.24184614,3865.0,3864.8,0.4877]
[1753941862480,3.0,3865.2,3864.8,0.4877]
[1753941862796,0.2418383,3865.1,3864.8,0.4877]
[1753941862984,0.2418383,3865.0,3864.8,0.4877]
[1753941863186,3.0,3865.2,3864.8,0.4877]
[1753941863386,0.24183427,3865.1,3864.5,0.4498]
[1753941863582,0.24183427,3865.0,3864.6,0.4877]
[1753941863796,2.58720113,3865.2,3864.6,0.4877]
[1753941863999,3.28579547,3865.1,3864.6,0.4877]
[1753941864313,0.24183462,3865.0,3864.6,0.4877]
[1753941864477,0.4947,3865.2,3864.5,0.001]
[1753941864478,0.24183462,3864.9,3864.5,0.001]
[1753941864676,3.0,3865.2,3864.6,0.9365]
[1753941864903,0.2418555,3865.1,3864.7,0.4877]
[1753941865112,0.2418555,3865.0,3864.7,0.4877]
[1753941865426,0.4567,3865.1,3864.5,0.001]
[1753941865625,0.24188907,3865.0,3864.8,0.4877]
[1753941865810,0.4567,3865.1,3864.8,0.4877]
[1753941865984,0.24188915,3865.0,3864.8,0.4877]
[1753941866308,0.4567,3865.1,3864.8,0.4877]
[1753941866610,0.24193392,3865.0,3864.8,0.4877]
[1753941866912,0.4567,3865.1,3864.8,0.4877]
[1753941867112,0.24193397,3865.0,3864.8,0.4877]
[1753941867284,0.24194046,3864.9,3864.8,0.4877]
[1753941867910,0.24199208,3864.9,3864.8,0.4877]
[1753941869915,0.2420636,3864.9,3864.8,0.4877]
[1753941872719,0.2420636,3864.9,3864.5,0.001]
[1753941873015,3.0,3865.2,3864.8,0.4877]
[1753941873180,3.0,3865.2,3864.9,0.4666]
[1753941873181,0.24208127,3865.1,3864.9,0.4666]
[1753941873385,0.24208127,3865.0,3864.7,0.4666]
[1753941873719,0.24208127,3864.9,3864.8,0.4666]
[1753941874490,0.24208127,3864.9,3864.8,4.05885601]
[1753941874684,0.24208127,3864.9,3864.8,1.4714]
[1753941874889,0.24208127,3864.9,3864.8,4.72361099]
[1753941875384,0.24208127,3864.9,3864.8,8.17581099]
[1753941875588,0.24208127,3864.9,3864.8,8.63061099]
[1753941875788,0.24208127,3864.9,3864.8,11.63061099]
[1753941875989,0.24208127,3864.9,3864.8,9.04315498]
[1753941876189,0.24208127,3864.9,3864.8,8.58835498]
[1753941876790,0.24218562,3864.9,3864.8,11.63061099]
[1753941877123,0.002,3865.3,3864.8,11.63061099]
[1753941877417,0.24218412,3865.2,3864.9,0.4666]
[1753941877612,0.24218412,3865.1,3864.9,0.4666]
[1753941877811,0.24218412,3865.0,3864.9,0.4666]
[1753941879832,0.24237305,3865.0,3864.9,1.0166]
[1753941885340,0.24237305,3865.0,3864.9,3.60398906]
[1753941885511,0.24237305,3865.0,3864.9,1.0166]
[1753941886437,1.14657305,3865.0,3864.9,0.55]
[1753941886634,0.68447305,3865.0,3864.9,0.55]
[1753941887439,1.14657305,3865.0,3864.9,3.907]
[1753941892754,1.14662867,3865.0,3864.9,3.907]
[1753941897249,1.14862867,3865.0,3864.9,3.907]
[1753941901153,5.97347523,3865.0,3864.6,0.001]
[1753941901339,0.24242867,3864.9,3864.7,3.907]
[1753941901544,0.24242867,3864.8,3864.7,3.907]
[1753941902346,0.24242867,3864.8,3864.7,4.3736]
[1753941903155,0.24242867,3864.8,3864.7,3.907]
[1753941903362,0.24242867,3864.8,3864.7,4.3778]
[1753941903929,0.24242867,3864.8,3864.7,5.6690995]
[1753941904127,0.002,3865.0,3864.9,3.13738906]
[1753941904752,0.002,3865.0,3864.9,4.05378906]
[1753941904968,0.002,3865.0,3864.9,7.96578906]
[1753941905563,0.002,3865.0,3864.9,5.3784]
[1753941905762,0.002,3865.0,3864.9,6.24922849]
[1753941905933,0.002,3865.0,3864.9,8.83661755]
[1753941906962,0.002,3865.0,3864.9,11.83661755]
[1753941908846,0.002,3865.0,3864.9,16.66146411]
[1753941913687,0.002,3865.0,3864.9,20.91146411]
[1753941918189,1e-08,3865.0,3864.9,20.91146411]
[1753941920046,0.002,3865.7,3865.4,0.55]
[1753941920250,0.002,3865.7,3865.6,5.37484656]
[1753941920879,0.002,3865.7,3865.6,5.84564656]
[1753941921044,0.002,3865.7,3865.6,6.29124656]
[1753941921244,0.002,3865.7,3865.6,8.87816708]
[1753941922190,0.002,3865.7,3865.6,8.43256708]
[1753941922360,0.002,3865.7,3865.6,10.56576759]
[1753941924591,1e-08,3865.9,3865.8,3.13678669]
[1753941924792,1e-08,3865.9,3865.8,10.04678669]
[1753941924964,1e-08,3865.9,3865.8,10.51758669]
[1753941925146,1e-08,3865.9,3865.8,14.76758669]
[1753941925351,1e-08,3865.9,3865.8,17.28027333]
[1753941925798,0.47340001,3865.9,3865.8,16.80947333]
[1753941925997,1e-08,3865.9,3865.8,16.80947333]
[1753941926549,0.47340001,3865.9,3865.8,16.80947333]
[1753941927295,1e-08,3865.9,3865.8,16.80947333]
[1753941927995,1e-08,3865.9,3865.8,17.28027333]
[1753941932762,0.47340001,3865.9,3865.8,16.80947333]
[1753941933303,1e-08,3865.9,3865.8,17.26077333]
[1753941938267,1e-08,3865.9,3865.8,16.80947333]
[1753941938990,1e-08,3865.9,3865.8,17.26077333]
[1753941939910,1e-08,3865.9,3865.8,16.80947333]
[1753941940467,1e-08,3865.9,3865.8,17.26077333]
[1753941944829,1e-08,3865.9,3865.8,17.25677333]
[1753941947238,0.90370001,3865.9,3865.8,2.58678669]
[1753941947446,0.90370001,3865.9,3865.8,6.49278669]
[1753941947734,0.90370001,3865.9,3865.8,7.04278669]
[1753941948509,0.90370001,3865.9,3865.8,3.13678669]
[1753941948701,0.90370001,3865.9,3865.8,7.04578669]
[1753941959470,1e-08,3865.9,3865.8,7.04578669]
[1753941959634,1e-08,3865.9,3865.8,11.88535735]
[1753941963688,1e-08,3865.9,3865.8,16.13535735]
[1753941965197,1e-08,3865.9,3865.8,15.68405735]
[1753941965698,0.45070001,3865.9,3865.8,15.68405735]
[1753941966075,0.94990001,3865.9,3865.8,15.68405735]
[1753941968295,0.45070001,3865.9,3865.8,15.68405735]
[1753941969301,1e-08,3865.9,3865.8,15.68405735]
[1753941969478,1e-08,3865.9,3865.8,11.43405735]
[1753941970702,0.94990001,3865.9,3865.8,11.43405735]
[1753941971401,0.45070001,3865.9,3865.8,11.43405735]
[1753941972631,0.94990001,3865.9,3865.8,11.43405735]
[1753941973004,0.94990001,3865.9,3865.8,7.04278669]
[1753941975937,0.45070001,3865.9,3865.8,7.04278669]
[1753941976119,0.94990001,3865.9,3865.8,7.04278669]
[1753941979448,0.45070001,3865.9,3865.8,7.04278669]
[1753941981024,0.44370001,3865.9,3865.8,7.04278669]
[1753941981917,0.94290001,3865.9,3865.8,7.04278669]
[1753941982317,0.94290001,3865.9,3865.8,3.13678669]
[1753941982531,0.94290001,3865.9,3865.8,4.456]
[1753941983611,0.94290001,3865.9,3865.6,0.001]
[1753941983814,0.94290001,3865.9,3865.7,3.906]
[1753941983815,0.4507,3865.8,3865.7,3.906]
[1753941984443,0.4507,3865.8,3865.7,4.456]
[1753941985642,0.9499,3865.8,3865.7,4.456]
[1753941985830,1.19249336,3865.8,3865.7,4.456]
[1753941987334,1.32494216,3865.8,3865.7,4.456]
[1753941988280,1.08256582,3865.8,3865.7,4.456]
[1753941991392,0.9499,3865.8,3865.7,4.456]
[1753941996369,0.9499,3865.8,3865.7,3.906]
[1753941998302,1.19202283,3865.8,3865.7,3.906]
[1753941998770,0.9499,3865.8,3865.7,3.906]
[1753941999178,1.19203375,3865.8,3865.7,3.906]
[1753941999383,1.3246536,3865.8,3865.7,3.906]
[1753941999583,1.3246536,3865.8,3865.7,3.907]
[1753942001067,3.91144029,3865.8,3865.7,3.907]
[1753942001271,2.5868536,3865.7,3865.6,0.001]
[1753942001488,3.75128735,3865.7,3865.6,0.001]
[1753942001697,12.22339859,3865.7,3865.6,0.001]
[1753942002919,12.46543833,3865.7,3865.6,0.001]
[1753942006296,12.22339859,3865.7,3865.6,0.001]
[1753942006811,16.13239859,3865.7,3865.6,0.001]
[1753942008316,16.37423067,3865.7,3865.6,0.001]
[1753942009804,16.50236489,3865.7,3865.6,0.001]
[1753942011948,7.27561833,3865.7,3865.6,0.001]
[1753942012118,11.67651833,3865.7,3865.6,0.001]
[1753942013966,11.18461833,3865.7,3865.6,0.001]
[1753942014444,11.67751833,3865.7,3865.6,0.001]
[1753942014854,7.76851833,3865.7,3865.6,0.001]
[1753942015159,11.67751833,3865.7,3865.6,0.001]
[1753942017979,11.18361833,3865.7,3865.6,0.001]
[1753942019475,7.27561833,3865.7,3865.6,0.001]
[1753942019804,1.25936473,3865.7,3865.6,0.001]
[1753942020073,4.52010005,3865.7,3865.6,0.4563]
[1753942020248,7.10695365,3865.7,3865.6,0.4563]
[1753942020767,7.1069947,3865.7,3865.6,0.4563]
[1753942021463,8.0292947,3865.7,3865.6,0.001]
[1753942021871,7.78742157,3865.7,3865.6,0.001]
[1753942023178,8.02944091,3865.7,3865.6,0.001]
[1753942025383,7.53654091,3865.7,3865.6,0.001]
[1753942025601,8.00784091,3865.7,3865.6,0.001]
[1753942025787,4.09984091,3865.7,3865.6,0.001]
[1753942025988,8.00784091,3865.7,3865.6,0.001]
[1753942030515,4.09984091,3865.7,3865.6,0.001]
[1753942030728,8.00784091,3865.7,3865.6,0.001]
[1753942034453,7.53654091,3865.7,3865.6,0.001]
[1753942034607,15.83268747,3865.7,3865.6,0.001]
[1753942034802,15.83268747,3865.7,3865.3,0.001]
[1753942034803,2.58705437,3865.4,3865.3,0.001]
[1753942035034,6.97920746,3865.4,3865.3,0.001]
[1753942035242,7.91100746,3865.4,3865.3,0.001]
[1753942037043,12.73585402,3865.4,3865.3,0.001]
[1753942037732,15.73585402,3865.4,3865.3,0.001]
[1753942038045,15.73585402,3865.4,3864.6,0.001]
[1753942038046,3.0,3865.0,3864.6,0.001]
[1753942038211,5.58752296,3864.7,3864.6,0.001]
[1753942038544,9.98267605,3864.7,3864.6,0.001]
[1753942038732,10.91447605,3864.7,3864.6,0.001]
[1753942040627,10.91455586,3864.7,3864.6,0.001]
[1753942043553,11.04658886,3864.7,3864.6,0.001]
[1753942043749,11.72340104,3864.7,3864.6,0.001]
[1753942045649,11.48118748,3864.7,3864.6,0.001]
[1753942045855,11.23916814,3864.7,3864.6,0.001]
[1753942047054,11.72285912,3864.7,3864.6,0.001]
[1753942047351,11.23916814,3864.7,3864.6,0.001]
[1753942047530,11.72282062,3864.7,3864.6,0.001]
[1753942049579,7.81182062,3864.7,3864.6,0.001]
[1753942049872,11.72182062,3864.7,3864.6,0.001]
[1753942052571,11.72164878,3864.7,3864.6,0.001]
[1753942053176,11.72164878,3864.7,3864.6,1e-08]
[1753942053363,5.58758991,3864.6,3864.5,0.001]
[1753942053540,7.55099848,3864.6,3864.5,0.001]
[1753942056082,7.65472148,3864.6,3864.5,1e-08]
[1753942056282,5.58785777,3864.2,3864.1,0.001]